[Event "Titled Tuesday Blitz July 4 Early 2023"]
[White "Melikhov, Evgeny V."]
[Black "Arat, Ufuk Sezen"]
[WhiteFideId "4122046"]
[BlackFideId "6309089"]
[WhiteElo "2416"]
[BlackElo "2582"]
[Result "0-1"]
[Round "11"]
[TimeControl "180+2"]
[Date "2023.07.04"]
[WhiteClock "0:00:00"]
[BlackClock "0:00:06"]
[Board "65"]

1. d4 {[%clk 0:03:00]}  Nf6 {[%clk 0:02:59]} 2. c4 {[%clk 0:03:00]}  e6 {[%clk 0:02:59]} 3. Nc3 {[%clk 0:03:01]}  Bb4 {[%clk 0:02:59]} 4. Qc2 {[%clk 0:03:00]}  c5 {[%clk 0:02:58]} 5. dxc5 {[%clk 0:03:00]}  Bxc5 {[%clk 0:02:58]} 6. Nf3 {[%clk 0:02:59]}  d5 {[%clk 0:02:58]} 7. Bg5 {[%clk 0:02:57]}  O-O {[%clk 0:02:52]} 8. e4 {[%clk 0:02:39]}  d4 {[%clk 0:02:48]} 9. e5 {[%clk 0:02:25]}  dxc3 {[%clk 0:02:44]} 10. exf6 {[%clk 0:02:22]}  gxf6 {[%clk 0:02:42]} 11. Bh6 {[%clk 0:02:19]}  cxb2 {[%clk 0:02:37]} 12. Qxb2 {[%clk 0:02:17]}  e5 {[%clk 0:02:37]} 13. Rd1 {[%clk 0:02:04]}  Qe7 {[%clk 0:02:34]} 14. Be2 {[%clk 0:01:50]}  Nc6 {[%clk 0:02:31]} 15. O-O {[%clk 0:01:49]}  Bf5 {[%clk 0:02:30]} 16. Nh4 {[%clk 0:01:26]}  Bg6 {[%clk 0:02:20]} 17. Bxf8 {[%clk 0:01:25]}  Rxf8 {[%clk 0:02:19]} 18. Nxg6 {[%clk 0:01:25]}  fxg6 {[%clk 0:02:18]} 19. Bf3 {[%clk 0:01:24]}  Nd4 {[%clk 0:02:12]} 20. Bd5+ {[%clk 0:01:24]}  Kg7 {[%clk 0:02:11]} 21. Qxb7 {[%clk 0:01:20]}  Qxb7 {[%clk 0:02:10]} 22. Bxb7 {[%clk 0:01:20]}  Rb8 {[%clk 0:02:11]} 23. Rb1 {[%clk 0:01:10]}  Bb6 {[%clk 0:01:54]} 24. Bd5 {[%clk 0:01:09]}  Rc8 {[%clk 0:01:49]} 25. Rb2 {[%clk 0:01:03]}  f5 {[%clk 0:01:45]} 26. g3 {[%clk 0:01:02]}  e4 {[%clk 0:01:41]} 27. Kg2 {[%clk 0:01:02]}  Nf3 {[%clk 0:01:35]} 28. Rd1 {[%clk 0:00:58]}  Ne5 {[%clk 0:01:25]} 29. a4 {[%clk 0:00:47]}  Rd8 {[%clk 0:01:17]} 30. a5 {[%clk 0:00:44]}  Bxa5 {[%clk 0:01:06]} 31. Rb7+ {[%clk 0:00:43]}  Kh6 {[%clk 0:01:07]} 32. Rxa7 {[%clk 0:00:43]}  Bb6 {[%clk 0:01:04]} 33. Rb7 {[%clk 0:00:43]}  Bc5 {[%clk 0:00:58]} 34. Ra1 {[%clk 0:00:30]}  Ng4 {[%clk 0:00:53]} 35. Rc7 {[%clk 0:00:20]}  Bd4 {[%clk 0:00:46]} 36. Ra8 {[%clk 0:00:15]}  Rd6 {[%clk 0:00:33]} 37. Bg8 {[%clk 0:00:13]}  Nf6 {[%clk 0:00:24]} 38. Bd5 {[%clk 0:00:11]}  Ng4 {[%clk 0:00:17]} 39. Bg8 {[%clk 0:00:08]}  Nf6 {[%clk 0:00:15]} 40. Bd5 {[%clk 0:00:08]}  g5 {[%clk 0:00:11]} 41. h4 {[%clk 0:00:07]}  gxh4 {[%clk 0:00:11]} 42. gxh4 {[%clk 0:00:07]}  f4 {[%clk 0:00:11]} 43. Rf8 {[%clk 0:00:05]}  f3+ {[%clk 0:00:11]} 44. Kg3 {[%clk 0:00:05]}  Nxd5 {[%clk 0:00:09]} 45. cxd5 {[%clk 0:00:04]}  Rxd5 {[%clk 0:00:06]} 46. Rg8 {[%clk 0:00:03]}  Be5+ {[%clk 0:00:06]} 47. Kg4 {[%clk 0:00:00]}  Bxc7 {[%clk 0:00:06]} 0-1


[Site "https://www.chess.com"]

[Event "Titled Tuesday Blitz July 4 Early 2023"]
[White "Asavasaetakul, Chawit"]
[Black "Rian, Kapriaga"]
[WhiteFideId "6204856"]
[BlackFideId "7103263"]
[WhiteElo "2570"]
[BlackElo "2385"]
[Result "0-1"]
[Round "11"]
[TimeControl "180+2"]
[Date "2023.07.04"]
[WhiteClock "0:00:46"]
[BlackClock "0:00:05"]
[Board "66"]

1. e4 {[%clk 0:03:00]}  c6 {[%clk 0:02:56]} 2. d4 {[%clk 0:03:00]}  d5 {[%clk 0:02:56]} 3. Nd2 {[%clk 0:03:01]}  dxe4 {[%clk 0:02:55]} 4. Nxe4 {[%clk 0:03:02]}  Bf5 {[%clk 0:02:55]} 5. Ng3 {[%clk 0:03:02]}  Bg6 {[%clk 0:02:56]} 6. Nf3 {[%clk 0:03:01]}  Nd7 {[%clk 0:02:56]} 7. h4 {[%clk 0:03:01]}  h6 {[%clk 0:02:57]} 8. h5 {[%clk 0:03:02]}  Bh7 {[%clk 0:02:57]} 9. Bd3 {[%clk 0:03:03]}  Bxd3 {[%clk 0:02:57]} 10. Qxd3 {[%clk 0:03:04]}  e6 {[%clk 0:02:58]} 11. Bd2 {[%clk 0:03:04]}  Ngf6 {[%clk 0:02:58]} 12. O-O-O {[%clk 0:03:05]}  Be7 {[%clk 0:02:58]} 13. Kb1 {[%clk 0:03:05]}  O-O {[%clk 0:02:59]} 14. Qe2 {[%clk 0:03:06]}  Qb6 {[%clk 0:02:41]} 15. c4 {[%clk 0:02:59]}  Bb4 {[%clk 0:02:24]} 16. Bc1 {[%clk 0:02:58]}  Qa6 {[%clk 0:02:20]} 17. b3 {[%clk 0:02:50]}  b5 {[%clk 0:02:18]} 18. c5 {[%clk 0:02:50]}  Ba3 {[%clk 0:02:12]} 19. Bd2 {[%clk 0:02:43]}  Qb7 {[%clk 0:02:11]} 20. Ne4 {[%clk 0:02:41]}  Nxe4 {[%clk 0:02:08]} 21. Qxe4 {[%clk 0:02:41]}  a5 {[%clk 0:02:04]} 22. g4 {[%clk 0:02:38]}  Nf6 {[%clk 0:01:53]} 23. Qe2 {[%clk 0:02:27]}  Nd5 {[%clk 0:01:47]} 24. g5 {[%clk 0:02:24]}  a4 {[%clk 0:01:14]} 25. gxh6 {[%clk 0:02:24]}  axb3 {[%clk 0:01:13]} 26. axb3 {[%clk 0:02:23]}  Bb4 {[%clk 0:00:48]} 27. Qe5 {[%clk 0:02:05]}  f6 {[%clk 0:00:37]} 28. Qxe6+ {[%clk 0:02:05]}  Rf7 {[%clk 0:00:37]} 29. Rhg1 {[%clk 0:01:57]}  g5 {[%clk 0:00:36]} 30. Nxg5 {[%clk 0:01:54]}  fxg5 {[%clk 0:00:33]} 31. Rxg5+ {[%clk 0:01:50]}  Kh8 {[%clk 0:00:32]} 32. Bxb4 {[%clk 0:01:23]}  Qa7 {[%clk 0:00:16]} 33. Qe5+ {[%clk 0:01:21]}  Rf6 {[%clk 0:00:14]} 34. Kc1 {[%clk 0:01:05]}  Qa2 {[%clk 0:00:12]} 35. Bc3 {[%clk 0:01:00]}  Qxb3 {[%clk 0:00:11]} 36. Rd3 {[%clk 0:00:52]}  b4 {[%clk 0:00:03]} 37. Rdg3 {[%clk 0:00:50]}  bxc3 {[%clk 0:00:01]} 38. Rg8+ {[%clk 0:00:50]}  Rxg8 {[%clk 0:00:01]} 39. Rxg8+ {[%clk 0:00:51]}  Kxg8 {[%clk 0:00:02]} 40. Qg5+ {[%clk 0:00:51]}  Kf7 {[%clk 0:00:01]} 41. Qg7+ {[%clk 0:00:51]}  Ke6 {[%clk 0:00:02]} 42. Qg8+ {[%clk 0:00:52]}  Kf5 {[%clk 0:00:02]} 43. Qh7+ {[%clk 0:00:50]}  Ke6 {[%clk 0:00:02]} 44. Qg8+ {[%clk 0:00:48]}  Kd7 {[%clk 0:00:03]} 45. Qg7+ {[%clk 0:00:48]}  Ne7 {[%clk 0:00:03]} 46. Qg4+ {[%clk 0:00:46]}  Rf5 {[%clk 0:00:03]} 47. Qe2 {[%clk 0:00:45]}  Qb2+ {[%clk 0:00:03]} 48. Qxb2 {[%clk 0:00:45]}  cxb2+ {[%clk 0:00:04]} 49. Kxb2 {[%clk 0:00:46]}  Rxh5 {[%clk 0:00:04]} 50. Kc3 {[%clk 0:00:46]}  Rxh6 {[%clk 0:00:05]} 0-1


[Site "https://www.chess.com"]

[Event "Titled Tuesday Blitz July 4 Early 2023"]
[White "Toolin, Christopher"]
[Black "Leebit02"]
[WhiteFideId "2024543"]
[WhiteElo "2381"]
[BlackElo "2566"]
[Result "0-1"]
[Round "11"]
[TimeControl "180+2"]
[Date "2023.07.04"]
[WhiteClock "0:00:00"]
[BlackClock "0:00:16"]
[Board "67"]

1. e4 {[%clk 0:03:00]}  c5 {[%clk 0:03:00]} 2. c3 {[%clk 0:02:59]}  d5 {[%clk 0:02:49]} 3. exd5 {[%clk 0:03:00]}  Nf6 {[%clk 0:02:50]} 4. d4 {[%clk 0:03:00]}  Qxd5 {[%clk 0:02:43]} 5. Nf3 {[%clk 0:03:00]}  Bg4 {[%clk 0:02:42]} 6. Be2 {[%clk 0:03:00]}  Nc6 {[%clk 0:02:42]} 7. Na3 {[%clk 0:02:59]}  e6 {[%clk 0:02:27]} 8. Nb5 {[%clk 0:02:58]}  Rc8 {[%clk 0:02:15]} 9. Bf4 {[%clk 0:02:54]}  Qd8 {[%clk 0:02:07]} 10. dxc5 {[%clk 0:02:52]}  Bxc5 {[%clk 0:01:56]} 11. Bd6 {[%clk 0:02:29]}  Bb6 {[%clk 0:01:42]} 12. O-O {[%clk 0:02:27]}  a6 {[%clk 0:01:34]} 13. Na3 {[%clk 0:02:24]}  Ne4 {[%clk 0:01:32]} 14. Nc4 {[%clk 0:02:18]}  Ba7 {[%clk 0:01:27]} 15. Ba3 {[%clk 0:02:15]}  b5 {[%clk 0:01:05]} 16. Nd6+ {[%clk 0:02:00]}  Nxd6 {[%clk 0:01:06]} 17. Bxd6 {[%clk 0:02:00]}  Ne7 {[%clk 0:01:04]} 18. a4 {[%clk 0:01:52]}  Nd5 {[%clk 0:00:58]} 19. Ba3 {[%clk 0:01:33]}  Qb6 {[%clk 0:00:44]} 20. axb5 {[%clk 0:01:27]}  axb5 {[%clk 0:00:44]} 21. Nd4 {[%clk 0:01:23]}  Bxe2 {[%clk 0:00:41]} 22. Qxe2 {[%clk 0:01:24]}  b4 {[%clk 0:00:41]} 23. Qb5+ {[%clk 0:01:00]}  Ke7 {[%clk 0:00:38]} 24. Bxb4+ {[%clk 0:00:20]}  Nxb4 {[%clk 0:00:38]} 25. Qg5+ {[%clk 0:00:20]}  Kf8 {[%clk 0:00:33]} 26. Nf3 {[%clk 0:00:13]}  Nc6 {[%clk 0:00:29]} 27. Ra4 {[%clk 0:00:11]}  Qc5 {[%clk 0:00:28]} 28. Qg3 {[%clk 0:00:09]}  Bb8 {[%clk 0:00:28]} 29. Qh3 {[%clk 0:00:07]}  Qb5 {[%clk 0:00:24]} 30. Rg4 {[%clk 0:00:05]}  Ne5 {[%clk 0:00:21]} 31. Nxe5 {[%clk 0:00:03]}  Bxe5 {[%clk 0:00:22]} 32. Re4 {[%clk 0:00:01]}  Bf6 {[%clk 0:00:20]} 33. Rfe1 {[%clk 0:00:02]}  g6 {[%clk 0:00:20]} 34. g3 {[%clk 0:00:02]}  Kg7 {[%clk 0:00:20]} 35. Qg2 {[%clk 0:00:03]}  Rhd8 {[%clk 0:00:20]} 36. h4 {[%clk 0:00:03]}  h5 {[%clk 0:00:20]} 37. R4e2 {[%clk 0:00:03]}  Rd3 {[%clk 0:00:20]} 38. b4 {[%clk 0:00:03]}  Bxc3 {[%clk 0:00:19]} 39. Rc1 {[%clk 0:00:02]}  Rc4 {[%clk 0:00:18]} 40. Rec2 {[%clk 0:00:02]}  Qxb4 {[%clk 0:00:17]} 41. Qf1 {[%clk 0:00:03]}  Rdd4 {[%clk 0:00:16]} 42. Rxc3 {[%clk 0:00:03]}  Rxc3 {[%clk 0:00:16]} 43. Rb1 {[%clk 0:00:03]}  Rb3 {[%clk 0:00:16]} 44. Ra1 {[%clk 0:00:03]}  Rb2 {[%clk 0:00:16]} 45. Re1 {[%clk 0:00:00]}  Rdd2 {[%clk 0:00:16]} 0-1


[Site "https://www.chess.com"]

[Event "Titled Tuesday Blitz July 4 Early 2023"]
[White "Womacka, Mathias"]
[Black "Vlassov, Nikolai"]
[WhiteFideId "4611390"]
[BlackFideId "4103360"]
[WhiteElo "2512"]
[BlackElo "2598"]
[Result "1/2-1/2"]
[Round "11"]
[TimeControl "180+2"]
[Date "2023.07.04"]
[WhiteClock "0:00:17"]
[BlackClock "0:00:21"]
[Board "70"]

1. e4 {[%clk 0:03:00]}  Nc6 {[%clk 0:02:57]} 2. Nf3 {[%clk 0:02:59]}  d5 {[%clk 0:02:57]} 3. exd5 {[%clk 0:03:00]}  Qxd5 {[%clk 0:02:58]} 4. Nc3 {[%clk 0:02:59]}  Qa5 {[%clk 0:02:58]} 5. Bb5 {[%clk 0:02:58]}  Bd7 {[%clk 0:02:58]} 6. d4 {[%clk 0:02:54]}  a6 {[%clk 0:02:58]} 7. Bc4 {[%clk 0:02:50]}  O-O-O {[%clk 0:02:39]} 8. Bd2 {[%clk 0:02:43]}  Bg4 {[%clk 0:02:24]} 9. Nd5 {[%clk 0:02:19]}  Qa4 {[%clk 0:02:14]} 10. b3 {[%clk 0:01:37]}  Qa3 {[%clk 0:02:14]} 11. O-O {[%clk 0:01:15]}  e5 {[%clk 0:01:46]} 12. h3 {[%clk 0:00:51]}  Bh5 {[%clk 0:01:26]} 13. dxe5 {[%clk 0:00:46]}  b5 {[%clk 0:01:00]} 14. Bc1 {[%clk 0:00:38]}  Qa5 {[%clk 0:00:36]} 15. Bd2 {[%clk 0:00:24]}  Bxf3 {[%clk 0:00:35]} 16. gxf3 {[%clk 0:00:19]}  Qa3 {[%clk 0:00:32]} 17. Bc1 {[%clk 0:00:17]}  Qc5 {[%clk 0:00:21]} 18. Be3 {[%clk 0:00:17]}  Qa3 {[%clk 0:00:21]} 19. Bc1 {[%clk 0:00:17]}  Qc5 {[%clk 0:00:21]} 20. Be3 {[%clk 0:00:17]}  Qa3 {[%clk 0:00:21]} 21. Bc1 {[%clk 0:00:17]} 1/2-1/2


[Site "https://www.chess.com"]

[Event "Titled Tuesday Blitz July 4 Early 2023"]
[White "Jaskolka, Tomasz"]
[Black "Kirillov, Dmitry"]
[WhiteFideId "1170791"]
[BlackFideId "34180572"]
[WhiteElo "2593"]
[BlackElo "2509"]
[Result "0-1"]
[Round "11"]
[TimeControl "180+2"]
[Date "2023.07.04"]
[WhiteClock "0:00:03"]
[BlackClock "0:00:11"]
[Board "73"]

1. d4 {[%clk 0:03:00]}  Nf6 {[%clk 0:02:59]} 2. Nc3 {[%clk 0:02:59]}  e6 {[%clk 0:03:00]} 3. Bf4 {[%clk 0:02:59]}  d5 {[%clk 0:02:58]} 4. Nb5 {[%clk 0:02:58]}  Na6 {[%clk 0:02:58]} 5. e3 {[%clk 0:02:58]}  c6 {[%clk 0:02:57]} 6. Nc3 {[%clk 0:02:58]}  Bd6 {[%clk 0:02:57]} 7. Bxa6 {[%clk 0:02:54]}  Bxf4 {[%clk 0:02:56]} 8. Bxb7 {[%clk 0:02:51]}  Bxb7 {[%clk 0:02:53]} 9. exf4 {[%clk 0:02:52]}  c5 {[%clk 0:02:54]} 10. Nf3 {[%clk 0:02:50]}  cxd4 {[%clk 0:02:52]} 11. Qxd4 {[%clk 0:02:47]}  O-O {[%clk 0:02:52]} 12. O-O {[%clk 0:02:47]}  Rb8 {[%clk 0:02:51]} 13. Ne5 {[%clk 0:02:33]}  Qc7 {[%clk 0:02:44]} 14. Qxa7 {[%clk 0:02:23]}  Rfd8 {[%clk 0:02:22]} 15. Rfd1 {[%clk 0:02:17]}  h6 {[%clk 0:02:04]} 16. Qd4 {[%clk 0:01:59]}  Ba8 {[%clk 0:01:57]} 17. Na4 {[%clk 0:01:41]}  Qa5 {[%clk 0:01:50]} 18. c3 {[%clk 0:01:34]}  Ne8 {[%clk 0:01:44]} 19. b3 {[%clk 0:01:32]}  Nd6 {[%clk 0:01:43]} 20. Rdc1 {[%clk 0:01:07]}  Nf5 {[%clk 0:01:41]} 21. Qd3 {[%clk 0:01:04]}  d4 {[%clk 0:01:35]} 22. cxd4 {[%clk 0:00:49]}  Nxd4 {[%clk 0:01:28]} 23. Rc5 {[%clk 0:00:44]}  Qa7 {[%clk 0:01:06]} 24. Qe3 {[%clk 0:00:28]}  Qb7 {[%clk 0:00:57]} 25. f3 {[%clk 0:00:13]}  Nf5 {[%clk 0:00:56]} 26. Qf2 {[%clk 0:00:12]}  Qb4 {[%clk 0:00:55]} 27. Rc4 {[%clk 0:00:10]}  Qe7 {[%clk 0:00:46]} 28. Rac1 {[%clk 0:00:10]}  f6 {[%clk 0:00:45]} 29. Nc6 {[%clk 0:00:08]}  Bxc6 {[%clk 0:00:44]} 30. Rxc6 {[%clk 0:00:09]}  Qb4 {[%clk 0:00:42]} 31. g3 {[%clk 0:00:07]}  Rd2 {[%clk 0:00:42]} 32. Qc5 {[%clk 0:00:07]}  Qb7 {[%clk 0:00:26]} 33. Rc8+ {[%clk 0:00:06]}  Kh7 {[%clk 0:00:24]} 34. Qf8 {[%clk 0:00:02]}  Rxc8 {[%clk 0:00:19]} 35. Rxc8 {[%clk 0:00:02]}  Qa7+ {[%clk 0:00:13]} 36. Kh1 {[%clk 0:00:01]}  Rd1+ {[%clk 0:00:13]} 37. Kg2 {[%clk 0:00:01]}  Qg1+ {[%clk 0:00:11]} 38. Kh3 {[%clk 0:00:02]}  Qf1+ {[%clk 0:00:10]} 39. Kg4 {[%clk 0:00:02]}  h5+ {[%clk 0:00:11]} 40. Kxh5 {[%clk 0:00:03]}  Qh3# {[%clk 0:00:11]} 0-1


[Site "https://www.chess.com"]

[Event "Titled Tuesday Blitz July 4 Early 2023"]
[White "Herzog2012"]
[Black "Ovchinnikov, Vsevolod"]
[BlackFideId "24176842"]
[WhiteElo "2481"]
[BlackElo "2587"]
[Result "0-1"]
[Round "11"]
[TimeControl "180+2"]
[Date "2023.07.04"]
[WhiteClock "0:00:00"]
[BlackClock "0:00:49"]
[Board "76"]

1. e4 {[%clk 0:03:00]}  g6 {[%clk 0:02:59]} 2. d4 {[%clk 0:03:00]}  Bg7 {[%clk 0:03:00]} 3. Nc3 {[%clk 0:03:00]}  a6 {[%clk 0:03:00]} 4. a4 {[%clk 0:02:58]}  d6 {[%clk 0:03:00]} 5. g3 {[%clk 0:02:56]}  Nd7 {[%clk 0:03:00]} 6. Bg2 {[%clk 0:02:56]}  Ngf6 {[%clk 0:03:01]} 7. Nge2 {[%clk 0:02:55]}  O-O {[%clk 0:03:02]} 8. O-O {[%clk 0:02:55]}  Rb8 {[%clk 0:03:02]} 9. f4 {[%clk 0:02:30]}  b5 {[%clk 0:03:02]} 10. e5 {[%clk 0:02:28]}  Ne8 {[%clk 0:03:01]} 11. axb5 {[%clk 0:02:23]}  axb5 {[%clk 0:03:02]} 12. Ne4 {[%clk 0:01:58]}  f6 {[%clk 0:02:54]} 13. e6 {[%clk 0:01:47]}  Nb6 {[%clk 0:02:53]} 14. d5 {[%clk 0:01:47]}  Bb7 {[%clk 0:02:41]} 15. Nf2 {[%clk 0:01:28]}  f5 {[%clk 0:02:22]} 16. Be3 {[%clk 0:01:22]}  Nc4 {[%clk 0:02:16]} 17. Bd4 {[%clk 0:01:19]}  Nxb2 {[%clk 0:02:14]} 18. Qd2 {[%clk 0:00:43]}  Nc4 {[%clk 0:02:13]} 19. Qc3 {[%clk 0:00:43]}  Nf6 {[%clk 0:01:56]} 20. Rfd1 {[%clk 0:00:34]}  Bxd5 {[%clk 0:01:46]} 21. Bxd5 {[%clk 0:00:24]}  Nxd5 {[%clk 0:01:45]} 22. Qf3 {[%clk 0:00:25]}  Nf6 {[%clk 0:01:40]} 23. Qc6 {[%clk 0:00:23]}  Qc8 {[%clk 0:01:30]} 24. Nc3 {[%clk 0:00:13]}  Qb7 {[%clk 0:01:20]} 25. Qxb7 {[%clk 0:00:09]}  Rxb7 {[%clk 0:01:21]} 26. Rab1 {[%clk 0:00:05]}  c6 {[%clk 0:01:19]} 27. Nd3 {[%clk 0:00:05]}  Ne8 {[%clk 0:01:15]} 28. Bxg7 {[%clk 0:00:05]}  Nxg7 {[%clk 0:01:16]} 29. Nb4 {[%clk 0:00:05]}  Rc8 {[%clk 0:01:15]} 30. Ra1 {[%clk 0:00:05]}  Nxe6 {[%clk 0:01:14]} 31. Re1 {[%clk 0:00:04]}  Nc5 {[%clk 0:01:10]} 32. Rad1 {[%clk 0:00:03]}  Kf7 {[%clk 0:01:09]} 33. Re2 {[%clk 0:00:03]}  Rd7 {[%clk 0:01:05]} 34. Rde1 {[%clk 0:00:03]}  Rcc7 {[%clk 0:00:55]} 35. Nd1 {[%clk 0:00:02]}  Ne4 {[%clk 0:00:52]} 36. Rf2 {[%clk 0:00:01]}  Nxf2 {[%clk 0:00:52]} 37. Nxf2 {[%clk 0:00:02]}  e5 {[%clk 0:00:51]} 38. fxe5 {[%clk 0:00:02]}  dxe5 {[%clk 0:00:50]} 39. Nfd3 {[%clk 0:00:02]}  Kf6 {[%clk 0:00:51]} 40. Nf2 {[%clk 0:00:00]}  Rd2 {[%clk 0:00:49]} 0-1


[Site "https://www.chess.com"]

[Event "Titled Tuesday Blitz July 4 Early 2023"]
[White "Garcia Almaguer, Juan Manuel"]
[Black "Kashlinskaya, Alina"]
[WhiteFideId "5110491"]
[BlackFideId "4198026"]
[WhiteElo "2465"]
[BlackElo "2574"]
[Result "1-0"]
[Round "11"]
[TimeControl "180+2"]
[Date "2023.07.04"]
[WhiteClock "0:00:06"]
[BlackClock "0:00:20"]
[Board "79"]

1. e4 {[%clk 0:02:34]}  c5 {[%clk 0:03:00]} 2. Nf3 {[%clk 0:02:34]}  d6 {[%clk 0:03:00]} 3. d4 {[%clk 0:02:32]}  cxd4 {[%clk 0:03:00]} 4. Nxd4 {[%clk 0:02:33]}  Nf6 {[%clk 0:03:01]} 5. Nc3 {[%clk 0:02:31]}  a6 {[%clk 0:03:02]} 6. Be2 {[%clk 0:02:29]}  e5 {[%clk 0:03:01]} 7. Nb3 {[%clk 0:02:29]}  Be7 {[%clk 0:03:01]} 8. Be3 {[%clk 0:02:29]}  Be6 {[%clk 0:03:02]} 9. Qd3 {[%clk 0:02:27]}  Nc6 {[%clk 0:03:02]} 10. a3 {[%clk 0:02:09]}  O-O {[%clk 0:03:01]} 11. O-O-O {[%clk 0:02:05]}  Rc8 {[%clk 0:03:01]} 12. Nd5 {[%clk 0:02:01]}  Bxd5 {[%clk 0:02:55]} 13. exd5 {[%clk 0:02:02]}  Nb8 {[%clk 0:02:56]} 14. g4 {[%clk 0:01:40]}  b5 {[%clk 0:02:48]} 15. h4 {[%clk 0:01:35]}  Nfd7 {[%clk 0:02:48]} 16. Bf3 {[%clk 0:01:27]}  Nb6 {[%clk 0:02:47]} 17. Be4 {[%clk 0:01:27]}  g6 {[%clk 0:02:41]} 18. h5 {[%clk 0:01:24]}  Bf6 {[%clk 0:02:31]} 19. hxg6 {[%clk 0:00:49]}  fxg6 {[%clk 0:02:30]} 20. Rh3 {[%clk 0:00:43]}  Rf7 {[%clk 0:02:22]} 21. Rdh1 {[%clk 0:00:42]}  Rg7 {[%clk 0:02:06]} 22. Kb1 {[%clk 0:00:32]}  Bg5 {[%clk 0:02:01]} 23. f4 {[%clk 0:00:29]}  exf4 {[%clk 0:01:56]} 24. Bd4 {[%clk 0:00:24]}  Bf6 {[%clk 0:01:55]} 25. Bxf6 {[%clk 0:00:21]}  Qxf6 {[%clk 0:01:55]} 26. Nd4 {[%clk 0:00:22]}  Na4 {[%clk 0:01:50]} 27. c3 {[%clk 0:00:18]}  Nd7 {[%clk 0:01:46]} 28. Ne6 {[%clk 0:00:18]}  Ndc5 {[%clk 0:01:46]} 29. Qf3 {[%clk 0:00:15]}  Nxe6 {[%clk 0:01:41]} 30. dxe6 {[%clk 0:00:16]}  Nb6 {[%clk 0:01:31]} 31. Bd5 {[%clk 0:00:10]}  Qe7 {[%clk 0:01:20]} 32. Re1 {[%clk 0:00:10]}  Nxd5 {[%clk 0:01:13]} 33. Qxd5 {[%clk 0:00:11]}  Rf8 {[%clk 0:01:09]} 34. Rf3 {[%clk 0:00:10]}  g5 {[%clk 0:01:09]} 35. Rd3 {[%clk 0:00:09]}  Rd8 {[%clk 0:01:04]} 36. Rh1 {[%clk 0:00:09]}  Rg6 {[%clk 0:00:54]} 37. Re1 {[%clk 0:00:09]}  h6 {[%clk 0:00:48]} 38. a4 {[%clk 0:00:10]}  bxa4 {[%clk 0:00:47]} 39. c4 {[%clk 0:00:10]}  Kg7 {[%clk 0:00:46]} 40. c5 {[%clk 0:00:10]}  a3 {[%clk 0:00:28]} 41. cxd6 {[%clk 0:00:10]}  Qf6 {[%clk 0:00:28]} 42. Re5 {[%clk 0:00:08]}  f3 {[%clk 0:00:23]} 43. Rxf3 {[%clk 0:00:07]}  Rxd6 {[%clk 0:00:23]} 44. Qb7+ {[%clk 0:00:05]}  Kh8 {[%clk 0:00:20]} 45. Rxf6 {[%clk 0:00:06]} 1-0


[Site "https://www.chess.com"]

[Event "Titled Tuesday Blitz July 4 Early 2023"]
[White "Golubev, Mikhail"]
[Black "Kopczynski, Michal"]
[WhiteFideId "14100983"]
[BlackFideId "1124200"]
[WhiteElo "2554"]
[BlackElo "2464"]
[Result "0-1"]
[Round "11"]
[TimeControl "180+2"]
[Date "2023.07.04"]
[WhiteClock "0:00:00"]
[BlackClock "0:01:13"]
[Board "80"]

1. e4 {[%clk 0:03:00]}  b6 {[%clk 0:02:59]} 2. d4 {[%clk 0:02:59]}  Bb7 {[%clk 0:02:59]} 3. Bd3 {[%clk 0:02:57]}  e6 {[%clk 0:03:00]} 4. Nf3 {[%clk 0:02:56]}  Nf6 {[%clk 0:03:00]} 5. Qe2 {[%clk 0:02:56]}  d5 {[%clk 0:03:01]} 6. e5 {[%clk 0:02:55]}  Nfd7 {[%clk 0:03:01]} 7. O-O {[%clk 0:02:52]}  c5 {[%clk 0:03:01]} 8. c3 {[%clk 0:02:47]}  Nc6 {[%clk 0:03:02]} 9. Bg5 {[%clk 0:02:33]}  Qc7 {[%clk 0:03:02]} 10. Nbd2 {[%clk 0:02:27]}  h6 {[%clk 0:03:00]} 11. Be3 {[%clk 0:02:20]}  O-O-O {[%clk 0:03:00]} 12. b3 {[%clk 0:01:51]}  f5 {[%clk 0:02:59]} 13. exf6 {[%clk 0:01:49]}  gxf6 {[%clk 0:03:00]} 14. Rac1 {[%clk 0:01:42]}  e5 {[%clk 0:02:57]} 15. Bf5 {[%clk 0:01:32]}  Kb8 {[%clk 0:02:47]} 16. Nh4 {[%clk 0:01:20]}  Bd6 {[%clk 0:02:43]} 17. g3 {[%clk 0:01:19]}  exd4 {[%clk 0:02:33]} 18. cxd4 {[%clk 0:01:18]}  cxd4 {[%clk 0:02:33]} 19. Bxd4 {[%clk 0:00:41]}  Nxd4 {[%clk 0:02:34]} 20. Qd3 {[%clk 0:00:42]}  Nc6 {[%clk 0:02:28]} 21. Ndf3 {[%clk 0:00:36]}  Nc5 {[%clk 0:02:27]} 22. Qb1 {[%clk 0:00:34]}  a5 {[%clk 0:02:15]} 23. a3 {[%clk 0:00:33]}  Ne4 {[%clk 0:02:07]} 24. Nd4 {[%clk 0:00:28]}  Nxd4 {[%clk 0:02:02]} 25. Rxc7 {[%clk 0:00:28]}  Bxc7 {[%clk 0:02:02]} 26. Qd3 {[%clk 0:00:26]}  Be5 {[%clk 0:01:51]} 27. f4 {[%clk 0:00:23]}  Bd6 {[%clk 0:01:51]} 28. Kg2 {[%clk 0:00:19]}  Nxf5 {[%clk 0:01:49]} 29. Nxf5 {[%clk 0:00:18]}  Bxa3 {[%clk 0:01:49]} 30. Qb5 {[%clk 0:00:15]}  d4 {[%clk 0:01:45]} 31. Kh3 {[%clk 0:00:08]}  Bc5 {[%clk 0:01:38]} 32. b4 {[%clk 0:00:04]}  axb4 {[%clk 0:01:32]} 33. Ra1 {[%clk 0:00:04]}  Bc8 {[%clk 0:01:31]} 34. Qc6 {[%clk 0:00:03]}  Bb7 {[%clk 0:01:23]} 35. Qa4 {[%clk 0:00:00]}  Kc7 {[%clk 0:01:13]} 0-1


[Site "https://www.chess.com"]